bitfinex/quotes_SOLUSD_20240714
["timestamp","ask_amount","ask_price","bid_price","bid_amount"]
[1720999560247,45.0,148.4,148.32,6.3987]
[1720999560467,45.0,148.4,148.33,1.34804981]
[1720999560764,51.7381,148.41,148.32,6.3987]
[1720999561168,6.7395,148.38,148.32,6.3987]
[1720999561362,45.0,148.37,148.32,6.3987]
[1720999561770,16.8439,148.43,148.32,6.3987]
[1720999561959,45.0,148.42,148.32,7.74686641]
[1720999562176,6.7386,148.4,148.32,7.74686641]
[1720999562358,6.7391,148.39,148.32,6.3987]
[1720999562656,45.0,148.38,148.32,6.3987]
[1720999563064,6.7386,148.4,148.32,6.3987]
[1720999563370,51.739,148.39,148.32,6.3987]
[1720999565168,6.7399,148.37,148.29,7.04884682]
[1720999565368,45.0,148.36,148.28,6.3987]
[1720999566968,45.0,148.37,148.29,1.34844515]
[1720999567175,45.0,148.37,148.28,36.9687]
[1720999567176,45.0,148.37,148.3,1.3482729]
[1720999567377,45.0,148.37,148.28,36.9687]
[1720999568975,45.0,148.37,148.28,38.31703463]
[1720999569173,45.0,148.37,148.28,36.9687]
[1720999569560,6.7404,148.36,148.28,6.3987]
[1720999569957,45.0,148.37,148.28,6.3987]
[1720999569958,51.74,148.37,148.28,6.3987]
[1720999570160,51.74,148.37,148.29,1.34850348]
[1720999570373,6.7403,148.36,148.28,6.3987]
[1720999570681,45.0,148.35,148.28,6.3987]
[1720999570879,51.7408,148.35,148.28,6.3987]
[1720999571655,45.0,148.35,148.28,7.74730557]
[1720999572779,45.0,148.36,148.28,7.74730557]
[1720999572975,51.7403,148.36,148.28,7.74730557]
[1720999573789,45.0,148.36,148.28,7.74730557]
[1720999574078,14.22087638,148.4,148.28,38.31730557]
[1720999574380,6.7393,148.39,148.28,38.31730557]
[1720999574582,6.7394,148.38,148.28,38.31730557]
[1720999574886,6.7399,148.37,148.28,38.31730557]
[1720999575080,31.06767638,148.4,148.28,36.9687]
[1720999575263,6.7404,148.36,148.28,36.9687]
[1720999575454,6.7399,148.37,148.28,36.9687]
[1720999575659,6.7399,148.37,148.28,6.3987]
[1720999575873,51.7404,148.36,148.28,6.3987]
[1720999576071,6.7408,148.35,148.28,6.3987]
[1720999576272,45.0,148.34,148.28,6.3987]
[1720999576481,6.7429,148.31,148.28,6.3987]
[1720999576685,45.0,148.34,148.28,6.3987]
[1720999576880,6.7422,148.32,148.28,6.3987]
[1720999577077,45.0,148.31,148.28,6.3987]
[1720999577979,51.7426,148.31,148.28,6.3987]
[1720999578179,45.0,148.31,148.28,6.3987]
[1720999578385,45.0,148.32,148.28,6.3987]
[1720999579977,51.7424,148.32,148.28,6.3987]
[1720999580484,51.7424,148.32,148.24,21.8824]
[1720999581969,6.7427,148.31,148.24,21.8824]
[1720999582169,45.0,148.3,148.24,21.8824]
[1720999583000,51.743,148.3,148.24,21.8824]
[1720999583305,51.743,148.3,148.24,6.5176]
[1720999584996,6.7448,148.27,148.21,6.5027]
[1720999585295,45.0,148.26,148.21,6.5027]
[1720999586901,51.7452,148.26,148.21,6.5027]
[1720999587600,51.7452,148.26,148.17,13.29882769]
[1720999587601,15.2041,148.25,148.17,13.29882769]
[1720999587807,15.2041,148.25,148.17,6.2449]
[1720999588111,51.7461,148.24,148.17,6.2449]
[1720999588292,45.0,148.24,148.17,6.2449]
[1720999589121,6.7448,148.27,148.18,16.43221674]
[1720999589295,6.7448,148.27,148.18,15.0827]
[1720999589613,6.7449,148.26,148.18,15.0827]
[1720999590118,6.7439,148.29,148.2,6.2772]
[1720999590411,59.98377857,148.32,148.2,6.2772]
[1720999590815,6.7443,148.28,148.2,6.2772]
[1720999591107,6.7445,148.27,148.2,6.2772]
[1720999591814,6.7449,148.26,148.2,6.2772]
[1720999592007,47.4306,148.28,148.2,6.2772]
[1720999592488,6.7454,148.25,148.2,6.2772]
[1720999593697,6.7466,148.23,148.2,6.2772]
[1720999594004,45.0,148.27,148.2,6.2772]
[1720999595288,6.7465,148.23,148.2,6.2772]
[1720999595486,45.0,148.22,148.18,15.0827]
[1720999595724,51.7469,148.22,148.18,15.0827]
[1720999596006,45.0,148.22,148.18,15.0827]
[1720999596211,45.0,148.23,148.18,15.0827]
[1720999596505,51.7464,148.23,148.18,15.0827]
[1720999596815,6.7468,148.22,148.16,6.4739]
[1720999597327,45.0,148.21,148.16,6.4739]
[1720999599819,45.0,148.22,148.16,6.4739]
[1720999599997,51.7468,148.22,148.16,6.4739]
[1720999600415,45.0,148.22,148.16,6.4739]
[1720999600917,45.0,148.23,148.16,7.82360165]
[1720999601214,45.0,148.23,148.16,6.4739]
[1720999601615,45.0,148.23,148.17,1.34959337]
[1720999601917,51.7458,148.24,148.16,6.4739]
[1720999602720,6.7463,148.23,148.16,6.4739]
[1720999602916,6.7467,148.22,148.16,6.4739]
[1720999603123,6.7473,148.21,148.16,6.4739]
[1720999603416,45.0,148.24,148.16,6.4739]
[1720999603417,6.7468,148.22,148.16,6.4739]
[1720999604115,45.0,148.24,148.16,7.82358122]
[1720999604311,45.0,148.24,148.16,6.4739]
[1720999604507,51.7461,148.24,148.16,6.4739]
[1720999605036,6.7474,148.21,148.16,6.4739]
[1720999605239,6.7468,148.22,148.16,6.4739]
[1720999605409,45.0,148.21,148.16,6.4739]
[1720999606321,51.7472,148.21,148.16,6.4739]
[1720999607628,30.57,148.25,148.16,6.4739]
[1720999607827,6.7458,148.24,148.16,7.82347635]
[1720999608340,6.7454,148.25,148.16,6.4739]
[1720999609841,6.7459,148.24,148.16,6.4739]
[1720999610731,6.7459,148.24,148.17,1.34945264]
[1720999610931,6.7459,148.24,148.18,1.34945185]
[1720999611936,6.7459,148.24,148.17,1.34945255]
[1720999612119,6.7455,148.25,148.17,1.34945255]
[1720999612316,6.7458,148.24,148.16,6.4739]
[1720999612518,6.7458,148.24,148.16,7.82332756]
[1720999612924,6.7454,148.25,148.16,7.82332756]
[1720999613140,16.8596,148.29,148.16,7.82332756]
[1720999613141,16.8596,148.29,148.17,17.29076812]
[1720999613347,6.7441,148.28,148.19,15.9414]
[1720999613645,6.7441,148.28,148.21,6.3015]
[1720999613814,6.7441,148.28,148.22,1.34909436]
[1720999614326,47.4261,148.32,148.22,1.34909436]
[1720999614327,6.7436,148.29,148.22,1.34909436]
[1720999615040,6.745,148.26,148.21,6.3015]
[1720999615347,6.7453,148.25,148.21,6.3015]
[1720999615914,30.57,148.29,148.21,6.3015]
[1720999616116,6.7458,148.24,148.21,6.3015]
[1720999617742,6.7455,148.25,148.21,6.3015]
[1720999618053,45.0,148.24,148.21,6.3015]
[1720999618419,51.7458,148.24,148.21,6.3015]
[1720999618936,6.7468,148.22,148.13,21.6961]
[1720999619242,45.0,148.21,148.13,21.6961]
[1720999620250,45.0,148.21,148.14,1.34979006]
[1720999620438,45.0,148.21,148.15,1.34975647]
[1720999620755,45.0,148.22,148.13,21.6961]
[1720999621048,45.0,148.22,148.14,1.34969333]
[1720999621420,45.0,148.22,148.15,1.34975494]
[1720999621937,51.7467,148.22,148.13,21.6961]
[1720999622259,51.7467,148.22,148.14,1.34975799]
[1720999622260,45.0,148.22,148.14,1.34975799]
[1720999622442,45.0,148.22,148.13,21.6961]
[1720999623343,45.0,148.22,148.14,1.34975859]
[1720999623529,6.7454,148.25,148.13,52.2661]
[1720999623726,6.7449,148.26,148.14,7.91460768]
[1720999623934,6.7449,148.26,148.15,1.34942912]
[1720999624235,6.7449,148.26,148.16,6.5651]
[1720999624433,6.7449,148.26,148.17,1.34942035]
[1720999624744,6.7449,148.26,148.16,6.5651]
[1720999624937,6.7449,148.26,148.16,7.91456587]
[1720999625245,16.3752,148.28,148.17,16.0793]
[1720999625246,23.1195,148.28,148.17,16.0793]
[1720999625443,6.7443,148.28,148.18,1.34929909]
[1720999625637,6.7443,148.28,148.17,16.0793]
[1720999625942,6.7443,148.28,148.18,1.34930113]
[1720999626325,11.00166521,148.3,148.18,6.231]
[1720999626529,6.7436,148.29,148.18,6.231]
[1720999629048,45.0,148.28,148.18,6.231]
[1720999629943,51.7441,148.28,148.18,6.231]
[1720999630330,51.7441,148.28,148.19,1.34927232]
[1720999630526,51.7441,148.28,148.18,6.231]
[1720999630840,6.7452,148.26,148.18,6.231]
[1720999631050,45.0,148.25,148.18,6.231]
[1720999631224,45.0,148.25,148.19,1.34942112]
[1720999631544,45.0,148.25,148.18,6.231]
[1720999631920,45.0,148.25,148.19,1.34942739]
[1720999632319,45.0,148.25,148.18,6.231]
[1720999632732,45.0,148.25,148.18,7.58042717]
[1720999632937,45.0,148.26,148.18,7.58042717]
[1720999634151,51.7449,148.26,148.18,6.231]
[1720999634644,6.7454,148.25,148.18,6.231]
[1720999635147,51.7449,148.26,148.18,6.231]
[1720999636541,45.0,148.26,148.18,6.231]
[1720999636746,51.7449,148.26,148.18,6.231]
[1720999637446,45.0,148.26,148.18,6.231]
[1720999637964,51.7449,148.26,148.18,7.58043336]
[1720999638159,45.0,148.26,148.18,7.58043336]
[1720999638733,45.0,148.26,148.18,6.231]
[1720999639057,45.0,148.26,148.19,1.34931123]
[1720999639267,51.745,148.26,148.19,1.34931123]
[1720999639554,51.745,148.26,148.18,6.231]
[1720999639758,45.0,148.26,148.18,6.231]
[1720999640443,51.7449,148.26,148.18,6.231]
[1720999641154,45.0,148.26,148.18,6.231]
[1720999642040,45.0,148.26,148.18,7.58031391]
[1720999642238,45.0,148.26,148.18,6.231]
[1720999642453,51.7449,148.26,148.18,6.231]
[1720999643949,6.7455,148.25,148.18,6.231]
[1720999644957,51.7449,148.26,148.18,6.231]
[1720999645154,45.0,148.25,148.18,6.231]
[1720999646154,45.0,148.25,148.19,1.34941386]
[1720999646664,45.0,148.25,148.18,6.231]
[1720999649653,51.7454,148.25,148.18,6.231]
[1720999650949,6.7458,148.24,148.18,6.231]
[1720999651147,45.0,148.23,148.18,6.231]
[1720999651949,45.0,148.24,148.18,6.231]
[1720999652472,15.33,148.23,148.18,21.561]
[1720999652775,15.33,148.21,148.18,6.231]
[1720999654368,15.33,148.21,148.16,15.33]
[1720999654550,15.33,148.19,148.14,15.33]
[1720999654743,15.33,148.2,148.15,15.33]
[1720999654942,6.7463,148.23,148.15,15.33]
[1720999655265,60.33,148.22,148.17,15.33]
[1720999655770,15.33,148.21,148.16,31.2019]
[1720999657059,45.0,148.22,148.16,31.2019]
[1720999657250,15.33,148.19,148.12,14.29933933]
[1720999657451,15.33,148.19,148.15,15.33]
[1720999657660,15.33,148.2,148.15,15.33]
[1720999657875,45.0,148.19,148.15,15.33]
[1720999658074,45.0,148.19,148.13,20.0]
[1720999658287,45.0,148.19,148.15,14.83]
[1720999658444,60.33,148.19,148.14,15.33]
[1720999659556,45.0,148.19,148.13,1.3498939]
[1720999659805,15.33,148.19,148.14,15.33]
[1720999659960,15.33,148.19,148.15,15.33]
[1720999660165,15.33,148.18,148.12,14.29933933]
[1720999660367,15.33,148.18,148.14,15.33]
[1720999660758,15.33,148.2,148.16,15.33]
[1720999661278,15.33,148.2,148.15,15.33]
[1720999661577,15.33,148.2,148.16,15.33]
[1720999661873,15.33,148.21,148.16,15.33]
[1720999662076,15.33,148.21,148.13,1.34978508]
[1720999662282,15.33,148.21,148.16,15.33]
[1720999662798,15.33,148.21,148.17,15.33]
[1720999663081,22.8763,148.26,148.19,15.33]
[1720999663257,15.33,148.24,148.2,15.33]
[1720999663978,15.33,148.25,148.2,15.33]
[1720999664361,10.9782035,148.29,148.22,15.33]
[1720999664362,6.744,148.28,148.22,15.33]
[1720999664577,15.33,148.27,148.23,15.33]
[1720999664756,6.7435,148.29,148.23,15.33]
[1720999664959,15.33,148.27,148.23,15.33]
[1720999665359,15.33,148.28,148.24,15.33]
[1720999665678,15.33,148.29,148.24,15.33]
[1720999666256,21.8854,148.3,148.21,1.34917935]
[1720999666574,6.7417,148.33,148.23,16.4479]
[1720999666762,15.4849,148.34,148.24,1.34879418]
[1720999666763,22.2262,148.34,148.24,1.34879418]
[1720999668070,6.7413,148.34,148.24,1.34879418]
[1720999668387,11.21137337,148.37,148.26,6.0752]
[1720999668592,6.7404,148.36,148.27,1.34847572]
[1720999669270,6.7408,148.35,148.26,6.0752]
[1720999669471,6.7413,148.34,148.27,1.34849538]
[1720999670573,16.5549,148.38,148.27,1.34849538]
[1720999670773,45.0,148.37,148.26,6.0752]
[1720999671077,45.0,148.37,148.27,1.34848982]
[1720999671078,6.7409,148.35,148.27,1.34848982]
[1720999671672,6.7412,148.34,148.27,1.34848982]
[1720999671861,45.0,148.33,148.27,1.34848982]
[1720999672060,6.7413,148.34,148.27,1.34848982]
[1720999672260,6.7409,148.35,148.27,1.34848982]
[1720999672677,6.7414,148.34,148.27,1.34848982]
[1720999673086,6.7409,148.35,148.28,1.34863361]
[1720999673284,51.7413,148.34,148.26,6.0752]
[1720999673484,6.7417,148.33,148.27,1.34856295]
[1720999673688,51.7413,148.34,148.27,1.34856295]
[1720999674569,45.0,148.34,148.27,1.34856295]
[1720999674881,6.7408,148.36,148.27,1.34856295]
[1720999674882,45.0,148.35,148.27,1.34856295]
[1720999676991,16.5549,148.38,148.27,1.34856295]
[1720999677189,6.7404,148.36,148.28,15.2459]
[1720999677489,16.5549,148.38,148.29,1.34836942]
[1720999677673,6.7399,148.37,148.3,1.34829523]
[1720999678561,6.7404,148.36,148.28,15.2459]
[1720999678768,16.5549,148.38,148.28,15.2459]
[1720999678985,45.0,148.37,148.28,15.2459]
[1720999679286,51.7399,148.37,148.29,1.3482968]
[1720999679476,51.7399,148.37,148.28,15.2459]
[1720999679477,16.2572,148.41,148.31,6.3829]
[1720999679676,6.7393,148.39,148.32,1.34821477]
[1720999679872,45.0,148.38,148.32,1.34821477]
[1720999680077,45.0,148.38,148.33,1.34821481]
[1720999680279,6.7386,148.4,148.33,1.34821481]
[1720999680478,6.739,148.39,148.31,6.3829]
[1720999680880,6.7382,148.41,148.31,6.3829]
[1720999681079,6.7382,148.41,148.32,1.34788207]
[1720999681279,6.7385,148.4,148.33,1.34789931]
[1720999681471,6.7391,148.39,148.32,1.34817699]
[1720999681785,6.7386,148.4,148.33,1.34807317]
[1720999682187,6.7381,148.41,148.33,1.34807317]
[1720999682389,6.7381,148.41,148.34,16.1503]
[1720999682567,6.7376,148.42,148.35,1.34789012]
[1720999682770,6.7376,148.42,148.36,1.34782543]
[1720999683177,6.7376,148.42,148.34,16.1503]
[1720999683489,6.7371,148.43,148.35,1.3478615]
[1720999683676,6.7371,148.43,148.37,6.3278]
[1720999683879,6.7368,148.44,148.38,1.34765385]
[1720999684182,30.63,148.48,148.38,1.34765385]
[1720999684389,6.7366,148.45,148.38,1.34765385]
[1720999685102,6.7357,148.47,148.38,1.34765385]
[1720999685393,6.7357,148.47,148.37,6.3278]
[1720999685570,6.7359,148.46,148.37,6.3278]
[1720999686695,6.7364,148.45,148.37,6.3278]
[1720999687086,15.4621,148.49,148.37,6.3278]
[1720999687286,6.7368,148.44,148.37,7.67540436]
[1720999687994,6.7363,148.45,148.37,7.67540436]
[1720999688194,6.7367,148.44,148.37,7.67540436]
[1720999688697,6.7371,148.43,148.37,6.3278]
[1720999688881,6.7368,148.44,148.38,1.34768023]
[1720999689081,6.7364,148.45,148.38,1.34768023]
[1720999689290,45.0,148.44,148.37,6.3278]
[1720999689486,45.0,148.44,148.38,1.34765277]
[1720999690180,45.0,148.44,148.37,6.3278]
[1720999690594,51.7367,148.44,148.37,6.3278]
[1720999691195,6.7375,148.43,148.37,6.3278]
[1720999691582,45.0,148.44,148.37,6.3278]
[1720999691803,45.0,148.44,148.38,1.34761644]
[1720999692177,46.0921,148.49,148.37,6.3278]
[1720999692382,15.28,148.45,148.41,15.28]
[1720999692581,15.4621,148.49,148.37,6.3278]
[1720999692803,11.01337744,148.51,148.43,15.28]
[1720999692980,15.28,148.47,148.43,15.28]
[1720999693388,15.28,148.47,148.41,15.2688]
[1720999693694,15.28,148.47,148.42,15.28]
[1720999694100,22.0156,148.47,148.42,15.28]
[1720999694497,15.28,148.46,148.41,30.5488]
[1720999695086,15.28,148.47,148.42,15.28]
[1720999696511,15.28,148.46,148.41,15.2688]
[1720999696680,15.28,148.45,148.37,22.1876]
[1720999696882,15.28,148.45,148.4,15.28]
[1720999697597,15.28,148.45,148.37,22.1876]
[1720999697904,15.28,148.45,148.4,15.28]
[1720999698415,15.28,148.45,148.41,15.28]
[1720999698917,15.28,148.45,148.37,22.1876]
[1720999698918,6.7363,148.45,148.37,22.1876]
[1720999699123,15.28,148.43,148.38,15.28]
[1720999700214,15.28,148.44,148.39,15.28]
[1720999701218,15.28,148.43,148.39,15.28]
[1720999701421,27.84787744,148.51,148.4,15.28]
[1720999701718,15.28,148.46,148.41,15.28]
[1720999702327,15.28,148.47,148.42,15.28]
[1720999702495,15.28,148.46,148.42,15.28]
[1720999702697,6.7345,148.49,148.42,15.28]
[1720999702914,15.28,148.47,148.42,15.28]
[1720999703091,15.28,148.46,148.37,22.1876]
[1720999703308,15.28,148.46,148.41,15.28]
[1720999703513,6.7343,148.5,148.42,15.28]
[1720999703692,15.28,148.47,148.42,15.28]
[1720999704696,15.28,148.46,148.41,15.28]
[1720999704897,6.735,148.48,148.41,15.28]
[1720999705201,15.28,148.47,148.42,15.28]
[1720999705800,15.28,148.46,148.41,15.28]
[1720999706997,6.7349,148.48,148.37,22.1876]
[1720999706998,15.28,148.45,148.4,15.28]
[1720999707316,15.28,148.44,148.39,15.28]
[1720999709013,15.28,148.44,148.37,22.1876]
[1720999709319,22.0601,148.44,148.34,6.4368]
[1720999709618,15.28,148.42,148.37,15.28]
[1720999709818,15.28,148.42,148.34,6.4368]
[1720999710020,15.3232,148.44,148.38,15.28]
[1720999710226,15.28,148.44,148.39,15.28]
[1720999710403,15.28,148.45,148.4,15.28]
[1720999710923,15.7351,148.48,148.39,15.28]
[1720999711097,15.28,148.44,148.39,15.28]
[1720999712223,6.7359,148.46,148.34,26.6968]
[1720999712224,15.28,148.43,148.38,15.28]
[1720999712402,45.0,148.42,148.34,6.4368]
[1720999712604,15.28,148.4,148.35,15.28]
[1720999712806,15.28,148.4,148.36,15.28]
[1720999713005,45.0,148.42,148.36,15.28]
[1720999713205,6.7381,148.41,148.35,15.28]
[1720999713399,15.28,148.4,148.35,15.28]
[1720999713908,15.28,148.4,148.34,7.78481291]
[1720999714107,15.28,148.4,148.35,15.28]
[1720999714596,15.28,148.39,148.34,21.7168]
[1720999714800,15.28,148.39,148.34,6.4368]
[1720999715017,15.28,148.39,148.34,21.7168]
[1720999715925,15.28,148.38,148.34,21.7168]
[1720999716219,6.7382,148.41,148.34,21.7168]
[1720999716421,60.28,148.4,148.35,15.28]
[1720999716725,15.28,148.39,148.34,21.7168]
[1720999716900,60.9448,148.42,148.34,6.4368]
[1720999716901,15.28,148.38,148.34,6.4368]
[1720999717309,15.28,148.38,148.3,7.04666324]
[1720999717626,15.28,148.37,148.32,15.28]
[1720999718014,15.28,148.38,148.33,15.28]
[1720999718710,67.6825,148.42,148.34,15.28]
[1720999718917,15.28,148.39,148.35,15.28]
[1720999719117,67.6825,148.42,148.35,15.28]
[1720999719430,15.28,148.39,148.35,15.28]
[1720999719929,15.28,148.38,148.34,15.28]
[1720999721923,15.28,148.38,148.31,20.0]
[1720999722229,15.28,148.38,148.34,15.28]
[1720999722526,6.738,148.41,148.34,15.28]
[1720999722701,15.28,148.39,148.35,15.28]
[1720999723330,15.28,148.4,148.35,15.28]
[1720999724914,67.6825,148.42,148.36,16.62803553]
[1720999724915,15.28,148.41,148.36,16.62803553]
[1720999725118,15.28,148.41,148.36,15.28]
[1720999725312,15.28,148.41,148.32,1.34787224]
[1720999725313,6.7372,148.43,148.37,15.28]
[1720999725523,16.4588,148.46,148.38,15.28]
[1720999725709,15.28,148.42,148.38,15.28]
[1720999726040,15.28,148.42,148.34,24.12436354]
[1720999726041,15.28,148.42,148.34,22.7766]
[1720999726323,15.28,148.41,148.34,22.7766]
[1720999726530,15.28,148.41,148.36,15.28]
[1720999728410,15.28,148.42,148.37,15.28]
[1720999731015,6.7372,148.43,148.37,15.28]
[1720999731215,15.28,148.44,148.39,15.28]
[1720999731818,15.28,148.41,148.34,22.7766]
[1720999732021,15.28,148.41,148.37,15.28]
[1720999732222,15.28,148.42,148.38,15.28]
[1720999732419,15.28,148.43,148.38,15.28]
[1720999734432,22.0172,148.43,148.38,15.28]
[1720999734731,15.28,148.43,148.38,15.28]
[1720999735235,15.28,148.43,148.39,15.28]
[1720999735438,6.345,148.48,148.33,91.38]
[1720999735439,8.74201871,148.5,148.41,6.1923]
[1720999735643,15.28,148.47,148.42,16.62736195]
[1720999735809,15.28,148.46,148.42,15.28]
[1720999736015,15.28,148.46,148.41,21.4723]
[1720999736319,15.28,148.46,148.41,7.53966064]
[1720999736525,15.28,148.46,148.42,15.28]
[1720999737911,15.28,148.46,148.41,6.1923]
[1720999738112,15.28,148.46,148.41,21.4723]
[1720999738923,15.28,148.46,148.42,1.3473145]
[1720999739234,15.28,148.47,148.42,16.6273145]
[1720999739843,6.735,148.48,148.42,16.6273145]
[1720999740029,15.28,148.47,148.42,16.6273145]
[1720999740539,15.28,148.45,148.41,6.1923]
[1720999740837,15.28,148.45,148.41,21.4723]
[1720999741330,15.28,148.45,148.41,6.1923]
[1720999741331,15.28,148.44,148.41,6.1923]
[1720999741528,15.28,148.44,148.35,21.8266]
[1720999741837,15.28,148.44,148.4,15.28]
[1720999742011,6.7354,148.47,148.4,15.28]
[1720999742211,61.0043,148.46,148.37,15.28]
[1720999742411,15.28,148.42,148.37,15.28]
[1720999742928,15.28,148.42,148.38,15.28]
[1720999743321,15.28,148.42,148.35,21.8266]
[1720999743322,15.28,148.42,148.37,15.28]
[1720999743531,15.28,148.41,148.36,15.28]
[1720999743918,15.28,148.42,148.37,15.28]
[1720999745426,15.28,148.41,148.36,15.28]
[1720999746429,15.28,148.4,148.35,6.1923]
[1720999746617,15.28,148.38,148.34,7.05015413]
[1720999746933,15.28,148.38,148.33,15.28]
[1720999747243,15.28,148.39,148.34,15.28]
[1720999749835,15.28,148.37,148.32,30.5912]
[1720999750441,15.28,148.38,148.34,15.28]
[1720999751330,15.28,148.39,148.34,15.28]
[1720999752527,15.28,148.38,148.33,15.28]
[1720999753229,15.28,148.37,148.33,15.28]
[1720999753629,15.7857,148.43,148.33,15.28]
[1720999753630,6.7386,148.4,148.33,15.28]
[1720999753843,15.28,148.38,148.34,15.28]
[1720999754049,15.28,148.38,148.35,1.34797527]
[1720999755052,15.28,148.38,148.32,15.3112]
[1720999755227,15.28,148.37,148.32,30.5912]
[1720999755550,15.28,148.37,148.33,1.34813176]
[1720999755750,15.28,148.37,148.31,6.6109]
[1720999755930,15.28,148.36,148.31,7.9590331]
[1720999756126,15.28,148.33,148.28,15.1785]
[1720999756336,15.28,148.32,148.28,15.1785]
[1720999756735,6.7409,148.35,148.28,30.4585]
[1720999756936,15.28,148.33,148.28,30.4585]
[1720999757136,15.28,148.32,148.27,28.50424112]
[1720999758346,15.28,148.3,148.27,13.22424112]
[1720999758547,15.28,148.28,148.24,15.1785]
[1720999758941,6.7426,148.31,148.23,21.4499]
[1720999759143,15.28,148.28,148.23,6.1699]
[1720999759343,15.28,148.28,148.24,15.28]
[1720999760056,15.28,148.29,148.24,15.28]
[1720999760349,15.28,148.29,148.23,6.1699]
[1720999760350,15.28,148.28,148.23,21.4499]
[1720999760554,15.28,148.27,148.23,6.1699]
[1720999760727,6.7431,148.3,148.23,21.4499]
[1720999761152,15.28,148.28,148.24,15.28]
[1720999761552,15.28,148.28,148.23,6.1699]
[1720999761733,15.28,148.28,148.23,21.4499]
[1720999761929,15.28,148.28,148.23,6.1699]
[1720999762135,15.28,148.27,148.23,6.1699]
[1720999762452,15.28,148.26,148.23,6.1699]
[1720999762753,15.28,148.26,148.21,7.05609008]
[1720999763054,15.28,148.25,148.21,15.28]
[1720999763351,16.203,148.31,148.23,15.28]
[1720999763572,15.28,148.27,148.23,15.28]
[1720999763748,15.28,148.28,148.23,15.28]
[1720999763928,51.7434,148.3,148.23,15.28]
[1720999763929,15.28,148.27,148.23,15.28]
[1720999764136,15.28,148.27,148.21,1.34905945]
[1720999764329,15.28,148.27,148.23,15.28]
[1720999764552,15.28,148.28,148.23,15.28]
[1720999764745,45.0,148.3,148.23,15.28]
[1720999765145,15.28,148.28,148.23,15.28]
[1720999766854,15.28,148.27,148.22,15.28]
[1720999767041,6.7438,148.29,148.22,15.28]
[1720999767240,15.28,148.27,148.23,15.28]
[1720999767751,15.28,148.27,148.2,15.1785]
[1720999767958,15.28,148.27,148.22,15.28]
[1720999768456,15.28,148.26,148.22,15.28]
[1720999768855,51.7432,148.3,148.22,15.28]
[1720999769054,15.28,148.27,148.22,15.28]
[1720999769948,15.28,148.26,148.22,15.28]
[1720999770261,15.28,148.27,148.22,15.28]
[1720999771138,15.28,148.27,148.23,15.28]
[1720999771645,15.28,148.29,148.24,15.28]
[1720999771850,16.203,148.31,148.2,45.4385]
[1720999772145,6.7417,148.33,148.26,15.28]
[1720999772378,15.28,148.31,148.26,15.28]
[1720999772857,15.28,148.31,148.22,6.6465]
[1720999772858,6.743,148.31,148.22,6.6465]
[1720999773161,15.28,148.29,148.24,15.28]